Cogmind - Beta 13 @@@ ROGUE MODE // 2024.04.11 @ 14:11:55 Player: Oldman Pu Result: Destroyed by exploding Fusion Modulator Performance ------------- Evolutions (1) 500 Regions Visited (2) 400 Robots Destroyed (86) 430 Value Destroyed (2137) 2137 Prototype IDs (7) 140 Alien Tech Used (0) 0 Bonus (386) 386 TOTAL SCORE: 3993 Bonus ------- High Alert Combat Kills 386 Cogmind --------- Core Integrity 0/400 Matter 290/300 Energy 265/265 System Corruption 9% Temperature Cool (12) Movement Rolling (101) Ox1 Location -9/Materials Parts ------- > --- POWER (1) -------- Improved Ion Engine > --- PROPULSION (3) --- Wheel Wheel Compact Wheel > --- UTILITY (3) ------ Cooling System High-capacity Storage Unit Core Shielding > --- WEAPON (2) ------- Improved Medium Laser Improved Medium Laser > --- INVENTORY (20) --- Deuterium Engine Deuterium Engine Deuterium Engine Wheel Heat Sink Improved Heat Sink Improved Heat Sink Cooling System Cooling System Improved Targeting Computer Improved Medium Laser Autogun Autogun Improved Assault Rifle Improved Assault Rifle Improved Assault Rifle Improved Light Cannon Improved Light Cannon Improved Light Cannon Peak State ------------ > --- POWER ------------ Heavy Ion Engine > --- PROPULSION ------- Wheel Wheel Compact Wheel > --- UTILITY ---------- Cooling System High-capacity Storage Unit Core Shielding > --- WEAPON ----------- Advanced Beam Cannon Advanced Beam Cannon > --- INVENTORY -------- Ion Engine Heat Sink Heat Sink Cooling System Cooling System Cooling System Light Armor Plating Beam Rifle Advanced Beam Cannon Advanced Beam Cannon Light Assault Rifle Light Assault Rifle Heavy Assault Rifle Improved Assault Rifle Improved Assault Rifle Improved Assault Rifle Improved Assault Rifle Improved Light Cannon Improved Light Cannon Improved Light Cannon [Rating: 20] Favorites ----------- Power Ion Engine Engine Ion Engine Propulsion Wheel Wheel Wheel Utility High-capacity Storage Unit Device Cooling System Storage High-capacity Storage Unit Processor Targeting Computer Protection Core Shielding Weapon Advanced Beam Cannon Energy Gun Improved Medium Laser Energy Cannon Advanced Beam Cannon Ballistic Gun Assault Rifle Ballistic Cannon Improved Light Cannon Build | -11 -10 -9 ------- Run | Yrd Mat Mat Slots Evolved 2 | . . 2 Power . | . . . Propulsion 1 | . . 1 Utility 1 | . . 1 Weapon . | . . . Parts Attached 62 | 5 14 43 Power 10 | 1 3 6 Engine 10 | 1 3 6 Core . | . . . Reactor . | . . . Propulsion 24 | 2 3 19 Treads . | . . . Leg . | . . . Wheel 24 | 2 3 19 Hover . | . . . Flight . | . . . Utility 13 | 1 3 9 Device 4 | . . 4 Storage 2 | 1 1 . Processor 1 | . 1 . Hackware . | . . . Protection 6 | . 1 5 Artifact . | . . . Weapon 15 | 1 5 9 Energy Gun 4 | . 1 3 Energy Cannon 7 | . 2 5 Ballistic Gun 3 | 1 2 . Ballistic Cannon 1 | . . 1 Launcher . | . . . Special Weapon . | . . . Impact Weapon . | . . . Slashing Weapon . | . . . Piercing Weapon . | . . . Special Melee Weapon . | . . . Unidentified Prototypes 3 | . 2 1 Parts Lost 14 | . 3 11 Power 2 | . 1 1 Propulsion 9 | . 2 7 Utility 1 | . . 1 Weapon 2 | . . 2 Highest Loss Streak 5 | . 1 5 To Critical Strikes 1 | . . 1 Average Slot Usage (%) 94 | . 92 95 Engine 11 | . 13 10 Wheel 27 | . 23 29 Device 6 | . . 10 Storage 12 | . 14 11 Protection 10 | . 10 10 Energy Gun 2 | . . 3 Energy Cannon 12 | . 4 16 Ballistic Gun 8 | . 21 . Naked Turns . | . . . Heaviest Build 62 | 12 54 62 Greatest Support 36 | 26 32 36 Greatest Overweight (x) 5 | . 5 5 Average Overweight (x) 1 | . 1 1 Largest Inventory Capacity 20 | 8 20 20 Average Capacity 19 | 6 18 20 Most Carried 20 | 1 14 20 Average Carried 14 | . 6 19 Final Capacity 20 | 8 20 20 Final Carried 19 | 1 14 19 Class Distribution -------------------- 89% | Mutant 10% | Scavenger-Mutant Dominant Class ---------------- Mutant | -10/Materials Mutant | -9/Materials Resources | -11 -10 -9 ----------- Run | Yrd Mat Mat Matter Collected 1323 | 158 545 620 Remotely . | . . . Salvage Created 3109 | . 594 2515 Parts 214 | . 43 171 Haulers Intercepted 5 | . . 5 Recyclers Shooed . | . . . Parts Field Recycled . | . . . Retrieved Matter . | . . . Parts Self-Destructed . | . . . Prevented . | . . . Kills | -11 -10 -9 ------- Run | Yrd Mat Mat Combat Hostiles Destroyed 62 | . 15 47 Guns 23 | . 15 8 Cannons 37 | . . 37 Classes Destroyed 13 | . 5 8 Worker 9 | . 3 6 Builder 4 | . 1 3 Hauler 5 | . . 5 Recycler 1 | . . 1 Mechanic 1 | . . 1 Operator 1 | . . 1 Watcher 7 | . 3 4 Swarmer 10 | . 6 4 Grunt 38 | . 9 29 Brawler 3 | . . 3 Duelist 2 | . . 2 Protector 2 | . . 2 Sentry 7 | . . 7 Best Kill Streak 8 | . 6 8 Combat Bots Only 6 | . 6 5 Max Kills in Single Turn 2 | . 2 2 Gunslinging . | . . . Exploded . | . . . Melee . | . . . Uniques/NPCs Destroyed . | . . . Combat | -11 -10 -9 -------- Run | Yrd Mat Mat Hostile Shots Fired 269 | . 86 183 Missed 70 | . 23 47 Damage Taken 2567 | . 641 1926 Core 615 | . 203 412 Absorbed by Shields . | . . . Redirected to Shielding 69 | . 13 56 Regen/Repaired (Parts) 59 | . . 59 Core Remaining (%) 59 | 100 18 . Volleys Fired 222 | . 83 139 Largest 2 | . 2 2 Hottest 136 | . 91 136 Shots Fired 434 | . 163 271 Gun 212 | . 158 54 Cannon 222 | . 5 217 Launcher . | . . . Special . | . . . Kinetic 172 | . 141 31 Thermal 262 | . 22 240 Explosive . | . . . Electromagnetic . | . . . Robot Hit Streak 15 | . 12 15 Robot Miss Streak 4 | . 4 4 Penetration Max . | . . . Secondary Targets 2 | . 2 . Max Gunslinging Chain 1 | . 1 . Shots Hit Robots 269 | . 108 161 Core Hits 117 | . 39 78 Critical Kills 5 | . 2 3 Critical Parts Destroyed 1 | . 1 . Critical Strikes 6 | . 3 3 Meltdown 4 | . 1 3 Destroy 2 | . 2 . Melee Attacks . | . . . Impact . | . . . Slashing . | . . . Piercing . | . . . Sneak Attacks . | . . . Combat Hostiles . | . . . Follow-up Attacks . | . . . Damage Inflicted 4509 | . 1206 3303 Guns 1748 | . 1143 605 Cannons 2761 | . 63 2698 Explosions . | . . . Melee . | . . . Ramming . | . . . Kinetic 1555 | . 1061 494 Thermal 2954 | . 145 2809 Explosive . | . . . Electromagnetic . | . . . Impact . | . . . Slashing . | . . . Piercing . | . . . Highest Corruption 9 | . 1 9 Average Corruption 3 | . 1 4 Corruption Purged . | . . . Corruption Blocked . | . . . Effects 43 | . 5 38 Message Errors 11 | . . 11 Matter Fused 13 | . 3 10 Heat Flow Errors 6 | . 1 5 Energy Discharges 2 | . . 2 Parts Rejected 1 | . . 1 Data Loss (minor) 4 | . 1 3 Data Loss (major) 5 | . . 5 Weapon Failures 1 | . . 1 Overload Shots . | . . . Overflow Damage 12 | . . 12 Projectiles 12 | . . 12 Explosions . | . . . Melee . | . . . Knockbacks 2 | . . 2 Impact . | . . . Kinetic 2 | . . 2 Secondary . | . . . Self-Inflicted Damage . | . . . Shots . | . . . Rammed . | . . . Targets Rammed . | . . . Kicked . | . . . Crushed . | . . . Highest Temperature 585 | . 196 585 Average Temperature 69 | . 38 77 Received Heat Transfer 960 | . 252 708 Effects 9 | . . 9 Energy Bleed 1 | . . 1 Interference 6 | . . 6 Matter Decay 1 | . . 1 Short Circuit 1 | . . 1 Siege Activations . | . . . Robots Corrupted . | . . . Combat Hostiles . | . . . Parts Fried . | . . . Impact Corruptions . | . . . Robots Melted 4 | . 1 3 Combat Hostiles 2 | . . 2 Parts Melted 9 | . 2 7 Heat Transferred 5418 | . 286 5132 Parts Sabotaged . | . . . Parts Stolen . | . . . Parts Stripped . | . . . Power Chain Reactions . | . . . Alert | -11 -10 -9 ------- Run | Yrd Mat Mat Peak Influence 889 | . 352 889 Initial 80 | . . 80 Average 396 | . 206 514 Maximum Alert Level 3 | . 1 3 Low Security (%) 32 | 100 55 17 Level 1 27 | . 44 17 Level 2 21 | . . 34 Level 3 18 | . . 30 Level 4 . | . . . Level 5 . | . . . High Security . | . . . Max Security . | . . . Squads Dispatched 13 | . 5 8 Investigation 6 | . 3 3 Extermination . | . . . Reinforcement 4 | . 2 2 Assault 3 | . . 3 Garrison . | . . . Intercept . | . . . Searches Triggered . | . . . Construction Impeded . | . . . Haulers Reinforced . | . . . Active Scanning Responses . | . . . Cargo Convoy Interrupts . | . . . Stealth | -11 -10 -9 --------- Run | Yrd Mat Mat Distress Signals 4 | . 1 3 Communications Jammed . | . . . Distress Signals . | . . . Times Spotted 86 | . 25 61 Peak Tracking Total 7 | . 7 6 Tactical Retreats 2 | . 2 . Traps | -11 -10 -9 ------- Run | Yrd Mat Mat Traps Triggered 6 | . 2 4 Indirectly . | . . . Trap Hack Attempts . | . . . Triggered . | . . . Disarmed . | . . . Reprogrammed . | . . . Reused . | . . . Traps Extracted . | . . . Installed . | . . . Triggered . | . . . Machines | -11 -10 -9 ---------- Run | Yrd Mat Mat Machines Disabled 5 | . 1 4 Max in Single Turn 1 | . 1 1 Machines Repaired . | . . . Machines Dismantled . | . . . Machines Sabotaged . | . . . Overloaded Fab Kills . | . . . Hacking | -11 -10 -9 --------- Run | Yrd Mat Mat Machines Accessed 14 | . 5 9 Terminals 11 | . 5 6 Fabricators . | . . . Repair Stations 1 | . . 1 Recycling Units . | . . . Scanalyzers 2 | . . 2 Garrison Access . | . . . Total Hacks 40 | . 14 26 Successful 20 | . 6 14 Failed 20 | . 8 12 Catastrophic 1 | . 1 . Database Lockouts . | . . . Manual . | . . . Terminals 30 | . 14 16 Fabricators . | . . . Repair Stations 6 | . . 6 Recycling Units . | . . . Scanalyzers 4 | . . 4 Garrison Access . | . . . Terminal Hacks 14 | . 6 8 Record 5 | . . 5 Prototype ID Bank 2 | . 2 . Branch Access Points 1 | . 1 . Emergency Access Points 1 | . . 1 Scanalyzer Index 1 | . . 1 Alert Level 1 | . 1 . Maintenance Status 1 | . 1 . Hauler Manifests 2 | . 1 1 Fabricator Hacks . | . . . Repair Station Hacks 4 | . . 4 Scan Component 2 | . . 2 Repair 2 | . . 2 Recycling Unit Hacks . | . . . Scanalyzer 2 | . . 2 Insert Component 1 | . . 1 Analyze 1 | . . 1 Garrison Access Hacks . | . . . Unauthorized Hacks . | . . . Terminals . | . . . Fabricators . | . . . Repair Stations . | . . . Recycling Units . | . . . Scanalyzers . | . . . Garrison Access . | . . . Data Cores Recovered . | . . . Used . | . . . Hacking Detections 8 | . 2 6 Full Trace Events 4 | . 1 3 Feedback Events 3 | . 1 2 Corruption 3 | . 1 2 Feedback Blocked . | . . . Robot Schematics Acquired . | . . . Robots Built . | . . . Authchips . | . . . Time . | . . . Total Robot Build Rating . | . . . Part Schematics Acquired 1 | . . 1 Parts Built . | . . . Authchips . | . . . Time . | . . . Total Part Build Rating . | . . . Parts Repaired 2 | . . 2 Time 58 | . . 58 Parts Recycled . | . . . Recycled Matter . | . . . Retrieved Matter . | . . . Retrieved Components . | . . . Parts Scanalyzed 1 | . . 1 Part Schematics Acquired 1 | . . 1 Parts Damaged . | . . . Bothacking | -11 -10 -9 ------------ Run | Yrd Mat Mat Used RIF Installer . | . . . Robots Hacked . | . . . Non-combat . | . . . Combat . | . . . Robot Hacks Applied . | . . . Relay Couplers Released . | . . . Fabnet Peak Effective % . | . . . Robots Rewired . | . . . Allies Hacked . | . . . Hacks Repelled . | . . . Allies | -11 -10 -9 -------- Run | Yrd Mat Mat Total Allies . | . . . Largest Group . | . . . Highest-Rated Group . | . . . Highest-Rated Ally . | . . . Total Orders . | . . . Ally Attacks . | . . . Total Damage . | . . . Kills . | . . . Allies Corrupted . | . . . Allies Melted . | . . . Intel | -11 -10 -9 ------- Run | Yrd Mat Mat Robot Analysis Total . | . . . Derelict Logs Recovered . | . . . Drone Launches . | . . . Drone Recoveries . | . . . Exploration | -11 -10 -9 ------------- Run | Yrd Mat Mat Turns Passed 2969 | 34 1073 1862 Spaces Moved 1779 | 30 630 1119 Core 3 | 3 . . Treads . | . . . Legs . | . . . Wheels 1776 | 27 630 1119 Hover . | . . . Flight . | . . . Fastest Speed 50 | 50 90 95 Average Speed 110 | 86 120 105 Slowest Speed 155 | 90 155 155 Overloaded Moves . | . . . Propulsion Burnouts . | . . . Robots Hopped . | . . . Cave-ins Triggered . | . . . Exploration Rate (%) 59 | 4 97 78 Regions Visited 2 Branch Regions . Pre-discovered Areas . | . . . Known Exits Taken . | . . . Unknown Exits Taken 2 | 1 1 . Scrap Searched . | . . . Spaces Dug . | . . . Terrain Destroyed . | . . . Melee . | . . . Projectile . | . . . AOE . | . . . Terrain Rammed . | . . . Walls Destroyed . | . . . Machines Disabled . | . . . Actions | -11 -10 -9 --------- Run | Yrd Mat Mat Total 2359 | 35 788 1536 Wait 222 | . 42 180 Move 1777 | 29 629 1119 Hop . | . . . Pick Up 41 | 1 13 27 Fast Attach 22 | 5 9 8 Attach 12 | . 1 11 Detach 1 | . . 1 Swap 29 | . 4 25 Drop 33 | . 7 26 Fire 222 | . 83 139 Melee . | . . . Ram . | . . . Kick . | . . . Crush . | . . . Escape Stasis . | . . . Rewire . | . . . Trap . | . . . Miscellaneous . | . . . Route ------- -11/Scrapyard -10/Materials (discovered 5 exits: *Mat x3 / *Min x2) -9/Materials (discovered 4 exits: [*Mat x2] / [*Min x2]) History --------- Turn | Location | Event 22 | -11/Scrapyard | Discovered new exit (range 14) 35 | -11/Scrapyard | Entered Materials 272 | -10/Materials | Core integrity fell below 50% 298 | -10/Materials | Identified exit to Mines 309 | -10/Materials | Build established: Mutant 465 | -10/Materials | Discovered new exit (range 5) 654 | -10/Materials | Core integrity fell below 20% 690 | -10/Materials | Discovered new exit (range 15) 1002 | -10/Materials | Discovered new exit (range 15) 1108 | -10/Materials | Entered another Materials area 1108 | -9/Materials | Evolved 2 slots: Propulsion x1, Utility x1 1112 | -9/Materials | Discovered new exit (range 4) 1814 | -9/Materials | Discovered new exit (range 9) 1908 | -9/Materials | First assault squad dispatched 2098 | -9/Materials | Repaired Core Shielding 2131 | -9/Materials | Repaired Cooling System 2165 | -9/Materials | Core integrity fell below 50% 2203 | -9/Materials | Discovered new exit (range 10) 2267 | -9/Materials | Discovered new exit (range 14) 2474 | -9/Materials | Lost 5 parts (1p2n1u1w) 2968 | -9/Materials | Core integrity fell below 20% 2970 | -9/Materials | Destroyed by exploding Fusion Modulator Last Messages --------------- complete complex tasks more quickly. 02919_ System corrupted: Matter fused (-7). 02920_ Connecting with Terminal... >>Manifests Retrieving manifest data... Found 1 hauler: A-02 Transporter 1x Sml. Matter Pod 5x Lgt. Ion Engine 02928_ K-01 Serf cleans the Pressure Siphon. 02933_ Acquired 17 matter. 02935_ K-01 Serf cleans the Pressure Siphon. 02951_ Connecting with Terminal... >>Access(Emergency) Found 1 emergency access door: (36,36) Map updated. 02957_ System corrupted: Matter fused (-10). 02970_ Fusion Modulator explodes. 02970_ Y-45 Defender destroyed. Map ----- +----------------------------------------------------+ | ?????????????????????????????????????????????????? | | ?????????????????????????????????????????????????? | | ?????????????????????????????????????????????????? | | ?????????????????????????????????????????????????? | | ?????????????????????????????????????????????????? | | ?????????????????????????????????????????????????? | | ?????????????????????????????????????????????????? | | ?????????????????????????????????????????????????? | | ?????????????????????????????????????????????????? | | ?????????????????????????????????????????????????? | | ?????????????????????????????????????????????????? | | ?????????????????????????????????????????????????? | | ?????????????????????????????????????????????????? | | ?????????????????????????????????????????????????? | | ?????????????????????????????????????????????????? | | ?????????????????????????????????????????????????? | | ?????????????????????????????????????????????????? | | ?????????????????????????????????????????????????? | | ?????????????????????????????????????????????????? | | ?????????????????????????????????????????????????# | | ??????+######????????????????????????????????????# | | ????? ???????###########??????????????????# | | ?????? ???????# ! #??????????????????# | | ??????? +??????# /* * #??????????????????# | | ?????????# ######## *[ %! ##?????????????????# | | ?????????# # @ #?????????????????# | | ?????????# # " " ##?????????????????# | | ?????????# "" + "R" #??????????????????# | | ?????????# "" # """ #??????????????????# | | ?????????## "T # #??????????????????# | | #####+##### "" ############??????????????????? | | # # "" # #??????????????????????? | | # # + ! ######################## | | # # # + "% | | # """ """ # """" # """ ################# " | | # """ """ # """" # """ #???????# # | | # """ """ / """" # """ #???????# + """" | | # # ########???????# # """" | | # [ %# #??????????########+#### """" | | ########### ## ####???????# # #### | | # # # "#???????# # | | # # # ""#???????# """ # | | # # # ||#???????# """ + | | # """ """ + # < ""#???????# """ # | | # """ """ # # ||#???????# # | | # """ """ # # ""#???????######## ########### | | # # # "#??????????????# #????###### | | # """T""" # ## ####??????????????# #????#==** | | ########### ## ######????????????# #????#==** | | ??# = # ## #????????????# #????# | +----------------------------------------------------+ Best States ------------- Heat Dissipation 50 Energy Generation 14 Energy Capacity 280 Matter Stores 300 Matter Capacity 300 Sight Range 16 Terrain Scan Density 10 Armor Coverage 150 Core Shielding 20 Evasion (%) 42 Targeting Accuracy 5 Item Schematics ----------------- Deuterium Engine | -9/Materials | Scanalyzed Robot Schematics ------------------ None Fabricated ------------ Nothing Alien Tech Used ----------------- None Achievements -------------- None Challenges ------------ None Game ------ Seed ProjectionSpreadAnalyzer Manual? 0 Play Time 00:38:26 Cumulative 243.4 hours Start 2024.04.11 @ 13:22:51 End 2024.04.11 @ 14:11:55 Sessions 1 Manual Loads 0 Difficulty Rogue Special Mode None Game No. 188 Rogue 176 Adventurer 12 Explorer 0 Win Type - Total 1 Types 1/0/0/0/0/0/0/0/0 Lore% 30 Gallery% 48 Achievement% 35 Wizard Run 0 Options --------- Layout 1 ASCII 0 Keyboard 0 Movement Mouse Keybinds 0 Fullscreen 1 Font 32/SmallcapsGlow Map View 77x35 Zoom Use 0% Tactical HUD 1 Map Filters NONE Filters NONE Steam 1 RUN: 8521021f-25e3-4bc8-b75b-bb0f78ef4f4e